fUSD/lending_fUSD_20250120
["ID","MTS","AMOUNT","RATE_DAILY","PERIOD"]
[349710867,1737389441996,-500.0,0.00020537,2]
[349710869,1737389442005,-500.0,0.00020537,2]
[349710870,1737389442014,-500.0,0.00020537,2]
[349710872,1737389442023,-500.0,0.00020537,2]
[349710874,1737389442032,-597.06,0.00020545,2]
[349710875,1737389442042,-500.0,0.00020545,7]
[349710877,1737389442052,-500.0,0.00020545,2]
[349710879,1737389442061,-500.0,0.00020545,2]
[349710881,1737389442070,-500.0,0.00020545,2]
[349710883,1737389442079,-500.0,0.00020545,2]
[349710884,1737389442089,-514.28,0.00020545,2]
[349710886,1737389442099,-506.22,0.00020545,2]
[349710888,1737389442109,-500.0,0.00020545,2]
[349710890,1737389442118,-397.17169156,0.00020545,2]
[349710891,1737389442128,-500.0,0.00020545,2]
[349710893,1737389442138,-500.0,0.00020545,2]
[349710895,1737389442147,-500.0,0.00020545,2]
[349710897,1737389442157,-858.76,0.00020545,2]
[349710898,1737389442166,-374.721516,0.00020545,2]
[349710900,1737389442175,-500.0,0.00020545,2]
[349710902,1737389442186,-548.88,0.00020545,2]
[349710904,1737389442195,-500.0,0.00020545,2]
[349710906,1737389442205,-309.836744,0.00020545,2]
[349710907,1737389442214,-500.0,0.00020545,2]
[349710909,1737389442224,-500.0,0.00020545,2]
[349710911,1737389442233,-500.0,0.00020545,2]
[349710913,1737389442243,-500.0,0.00020545,2]
[349710915,1737389442253,-857.91,0.00020545,2]
[349710917,1737389442262,-1039.94,0.00020545,2]
[349710918,1737389442271,-886.58,0.00020545,2]
[349710920,1737389442280,-1019.8,0.00020545,2]
[349710922,1737389442289,-500.0,0.00020545,2]
[349710924,1737389442299,-1178.2,0.00020545,2]
[349710925,1737389442309,-500.0,0.00020545,2]
[349710927,1737389442318,-686.0,0.00020545,2]
[349710929,1737389442327,-716.26,0.00020545,2]
[349710931,1737389442337,-500.0,0.00020545,2]
[349710933,1737389442347,-1409.72,0.00020545,2]
[349710935,1737389442356,-161.831666,0.00020545,2]
[349710937,1737389442366,-500.0,0.00020545,2]
[349710938,1737389442377,-500.0,0.00020545,2]
[349710940,1737389442387,-539.6,0.00020545,2]
[349710942,1737389442396,-500.0,0.00020545,2]
[349710944,1737389442406,-3327.54,0.00020545,2]
[349710946,1737389442416,-683.22,0.00020545,2]
[349710947,1737389442425,-500.0,0.00020545,2]
[349710949,1737389442435,-825.28,0.00020545,2]
[349710951,1737389442445,-500.0,0.00020545,2]
[349710953,1737389442454,-944.94,0.00020545,2]
[349710954,1737389442464,-1844.45,0.00020545,2]
[349710956,1737389442473,-20432.03,0.00020548,2]
[349710958,1737389442483,-1474.35498025,0.00020565,2]
[349710960,1737389442492,-975.28116572,0.0002059,2]
[349710962,1737389442502,-200.0,0.00020605,2]
[349710964,1737389442511,-975.28116572,0.00020659,2]
[349710966,1737389442521,-500.0,0.00020718,2]
[349710967,1737389442531,-500.0,0.00020718,2]
[349710969,1737389442540,-500.0,0.00020718,2]
[349710971,1737389442550,-500.0,0.00020718,2]
[349710973,1737389442560,-500.0,0.00020718,2]
[349710975,1737389442570,-500.0,0.00020718,2]
[349710977,1737389442579,-500.0,0.00020718,2]
[349710978,1737389442589,-500.0,0.00020718,2]
[349710980,1737389442599,-500.0,0.00020718,2]
[349710982,1737389442609,-500.0,0.00020718,2]
[349710984,1737389442618,-500.0,0.00020718,2]
[349710986,1737389442628,-500.0,0.00020718,2]
[349710988,1737389442642,-500.0,0.00020718,2]
[349710991,1737389442652,-500.0,0.00020718,2]
[349710994,1737389442662,-537.3,0.00020718,2]
[349710997,1737389442671,-416.38545026,0.00020718,2]
[349710999,1737389442681,-500.0,0.00020718,2]
[349711000,1737389442691,-500.0,0.00020718,2]
[349711002,1737389442701,-500.0,0.00020718,2]
[349711004,1737389442711,-500.0,0.00020718,2]
[349711006,1737389442720,-500.0,0.00020718,2]
[349711008,1737389442730,-500.0,0.00020718,2]
[349711010,1737389442739,-500.0,0.00020718,2]
[349711012,1737389442749,-500.0,0.00020718,2]
[349711014,1737389442758,-500.0,0.00020718,2]
[349711016,1737389442768,-500.0,0.00020718,2]
[349711017,1737389442777,-500.0,0.00020718,2]
[349711019,1737389442787,-500.0,0.00020719,2]
[349711021,1737389442796,-547.72,0.00020719,2]
[349711023,1737389442806,-150.47,0.00020719,2]
[349711025,1737389442815,-163.13,0.00020719,2]
[349711027,1737389442825,-500.0,0.00020719,2]
[349711029,1737389442835,-500.0,0.00020719,2]
[349711031,1737389442845,-500.0,0.00020719,2]
[349711032,1737389442854,-350.4,0.00020719,2]
[349711034,1737389442864,-172.56739953,0.00020719,2]
[349711036,1737389442874,-500.0,0.00020719,2]
[349711038,1737389442883,-500.0,0.00020719,2]
[349711040,1737389442893,-500.0,0.00020719,2]
[349711042,1737389442904,-500.0,0.00020719,2]
[349711044,1737389442913,-500.0,0.00020719,2]
[349711046,1737389442923,-500.0,0.00020719,2]
[349711048,1737389442933,-500.0,0.00020719,2]
[349711049,1737389442943,-500.0,0.00020719,2]
[349711051,1737389442952,-500.0,0.00020719,2]
[349711053,1737389442962,-500.0,0.00020719,2]
[349711055,1737389442971,-500.0,0.00020719,2]
[349711057,1737389442989,-500.0,0.00020719,2]
[349711059,1737389442999,-505.18,0.00020719,2]
[349711061,1737389443009,-571.86489479,0.00020719,2]
[349711062,1737389443019,-251.71509325,0.00020719,2]
[349711064,1737389443029,-500.0,0.00020719,2]
[349711066,1737389443038,-500.0,0.00020719,2]
[349711068,1737389443048,-500.0,0.00020719,2]
[349711070,1737389443058,-1532.67,0.00020719,2]
[349711072,1737389443068,-155.98,0.00020719,2]
[349711074,1737389443078,-500.0,0.00020719,2]
[349711075,1737389443088,-569.94,0.00020719,2]
[349711077,1737389443097,-500.0,0.00020719,2]
[349711079,1737389443107,-512.33,0.00020719,2]
[349711081,1737389443118,-621.4,0.00020719,2]
[349711083,1737389443128,-500.0,0.00020719,2]
[349711085,1737389443137,-500.0,0.00020719,2]
[349711087,1737389443147,-500.0,0.00020719,2]
[349711089,1737389443157,-500.0,0.00020719,2]
[349711091,1737389443167,-500.0,0.00020719,2]
[349711092,1737389443176,-500.0,0.00020719,2]
[349711093,1737389443186,-500.0,0.00020719,2]
[349711094,1737389443196,-500.0,0.00020719,2]
[349711095,1737389443205,-500.0,0.00020719,2]
[349711096,1737389443215,-563.92,0.00020719,2]
[349711097,1737389443224,-500.0,0.00020719,2]
[349711098,1737389443234,-500.0,0.00020719,2]
[349711099,1737389443243,-500.0,0.00020719,2]
[349711100,1737389443253,-500.0,0.00020719,2]
[349711101,1737389443263,-500.0,0.00020719,2]
[349711102,1737389443272,-500.0,0.00020719,2]
[349711103,1737389443282,-500.0,0.00020719,2]
[349711104,1737389443292,-916.04,0.00020719,2]
[349711106,1737389443302,-500.0,0.00020719,2]
[349711108,1737389443312,-500.0,0.00020719,2]
[349711110,1737389443322,-500.0,0.00020719,2]
[349711112,1737389443331,-500.0,0.00020719,2]
[349711114,1737389443341,-500.0,0.00020719,2]
[349711116,1737389443351,-500.0,0.00020719,2]
[349711118,1737389443361,-500.0,0.00020719,2]
[349711120,1737389443371,-500.0,0.00020719,2]
[349711122,1737389443382,-209.39935048,0.00020719,2]
[349711125,1737389443392,-500.0,0.00020719,2]
[349711127,1737389443402,-500.0,0.00020719,2]
[349711129,1737389443412,-500.0,0.00020719,2]
[349711131,1737389443421,-500.0,0.00020719,2]
[349711133,1737389443430,-526.69,0.00020719,2]
[349711135,1737389443440,-500.0,0.00020719,2]
[349711137,1737389443449,-500.0,0.00020719,2]
[349711139,1737389443459,-500.0,0.00020719,2]
[349711141,1737389443468,-500.0,0.00020719,2]
[349711143,1737389443482,-500.0,0.00020719,2]
[349711145,1737389443492,-974.36,0.00020719,2]
[349711147,1737389443502,-500.0,0.00020719,2]
[349711149,1737389443513,-500.0,0.00020719,2]
[349711151,1737389443523,-1870.7,0.00020719,2]
[349711154,1737389443533,-500.0,0.00020719,2]
[349711156,1737389443543,-500.0,0.00020719,2]
[349711158,1737389443553,-500.0,0.00020719,2]
[349711160,1737389443563,-500.0,0.00020719,2]
[349711162,1737389443572,-500.0,0.00020719,2]
[349711164,1737389443584,-500.0,0.00020719,2]
[349711166,1737389443594,-1100.5,0.00020719,2]
[349711168,1737389443604,-500.0,0.00020719,2]
[349711170,1737389443614,-500.0,0.00020719,2]
[349711172,1737389443623,-500.0,0.00020719,2]
[349711174,1737389443633,-500.0,0.00020719,2]
[349711176,1737389443642,-500.0,0.00020719,2]
[349711178,1737389443651,-500.0,0.00020719,2]
[349711180,1737389443661,-678.08,0.0002072,2]
[349711182,1737389443671,-1014.81,0.0002072,2]
[349711184,1737389443681,-524.13853425,0.0002072,2]
[349711186,1737389443691,-976.23,0.0002072,2]
[349711188,1737389443700,-538.72,0.0002072,2]
[349711190,1737389443710,-1075.53,0.0002072,2]
[349711192,1737389443720,-1153.76,0.0002072,2]
[349711194,1737389443730,-500.0,0.00020721,2]
[349711196,1737389443739,-177.17304385,0.00020721,2]
[349711198,1737389443749,-500.0,0.00020721,2]
[349711200,1737389443759,-152.57348658,0.00020721,2]
[349711203,1737389443770,-638.63,0.00020721,2]
[349711205,1737389443779,-597.61,0.00020721,2]
[349711207,1737389443789,-286.49,0.00020721,2]
[349711209,1737389443798,-500.0,0.00020721,2]
[349711211,1737389443807,-500.0,0.00020721,2]
[349711213,1737389443818,-500.0,0.00020721,2]
[349711215,1737389443827,-500.0,0.00020721,2]
[349711217,1737389443837,-500.0,0.00020721,2]
[349711219,1737389443846,-500.0,0.00020721,2]
[349711221,1737389443855,-500.0,0.00020721,2]
[349711223,1737389443865,-644.44758988,0.00020721,2]
[349711225,1737389443875,-500.0,0.00020721,2]
[349711227,1737389443885,-500.0,0.00020721,2]
[349711229,1737389443896,-500.0,0.00020721,2]
[349711249,1737389444077,-500.0,0.00020721,2]
[349711251,1737389444088,-227.08238922,0.00020721,2]
[349711253,1737389444097,-500.0,0.00020721,2]
[349711255,1737389444106,-333.9500028,0.00020721,2]
[349711257,1737389444116,-500.0,0.00020721,2]
[349711259,1737389444125,-500.0,0.00020721,2]
[349711261,1737389444134,-500.0,0.00020721,2]
[349711263,1737389444143,-500.0,0.00020721,2]
[349711265,1737389444152,-505.83,0.00020721,2]
[349711267,1737389444160,-500.0,0.00020721,2]
[349711269,1737389444169,-975.28116572,0.00020728,2]
[349711271,1737389444179,-2982.66108838,0.00020733,2]
[349711273,1737389444188,-152.0,0.0002077,3]
[349711275,1737389444197,-500.0,0.00020773,2]
[349711277,1737389444206,-1474.35498025,0.00020787,2]
[349711279,1737389444215,-975.28116572,0.00020797,2]
[349711281,1737389444224,-500.0,0.00020811,2]
[349711283,1737389444233,-500.0,0.00020811,2]
[349711285,1737389444242,-376.3,0.00020811,2]
[349711288,1737389444255,-579.67,0.00020811,2]
[349711290,1737389444264,-531.01,0.00020811,2]
[349711292,1737389444273,-500.0,0.00020811,2]
[349711294,1737389444282,-712.92,0.00020811,2]
[349711296,1737389444291,-500.0,0.00020811,2]
[349711298,1737389444301,-500.0,0.00020811,2]
[349711300,1737389444310,-500.0,0.00020811,2]
[349711302,1737389444320,-500.0,0.00020811,2]
[349711304,1737389444329,-500.0,0.00020811,2]
[349711306,1737389444339,-500.0,0.00020811,2]
[349711308,1737389444348,-876.98,0.00020811,2]
[349711309,1737389444358,-1382.83,0.00020811,2]
[349711312,1737389444367,-500.0,0.00020811,2]
[349711313,1737389444377,-753.98,0.00020811,2]
[349711315,1737389444387,-500.0,0.00020811,2]
[349711317,1737389444397,-500.0,0.00020811,2]
[349711320,1737389444407,-500.0,0.00020811,2]
[349711322,1737389444416,-741.58,0.00020811,2]
[349711324,1737389444426,-500.0,0.00020811,2]
[349711325,1737389444435,-500.0,0.00020811,2]
[349711327,1737389444444,-500.0,0.00020811,2]
[349711329,1737389444454,-500.0,0.00020811,2]
[349711331,1737389444463,-797.11,0.00020815,2]
[349711333,1737389444474,-500.0,0.00020819,7]
[349711335,1737389444484,-500.0,0.00020819,2]
[349711337,1737389444493,-500.0,0.00020819,2]
[349711339,1737389444502,-500.0,0.00020819,2]
[349711341,1737389444511,-250.51749447,0.00020819,2]
[349711343,1737389444521,-500.0,0.00020819,2]
[349711345,1737389444530,-500.0,0.00020819,2]
[349711348,1737389444541,-505.13445066,0.00020819,2]
[349711349,1737389444551,-858.76,0.00020819,2]
[349711351,1737389444560,-374.721516,0.00020819,2]
[349711353,1737389444570,-232.04,0.00020819,2]
[349711356,1737389444579,-548.88,0.00020819,2]
[349711358,1737389444590,-500.0,0.00020819,2]
[349711359,1737389444600,-309.836744,0.00020819,2]
[349711361,1737389444609,-500.0,0.00020819,2]
[349711364,1737389444620,-500.0,0.00020819,2]
[349711365,1737389444634,-500.0,0.00020819,2]
[349711367,1737389444644,-323.08232501,0.00020819,2]
[349711370,1737389444655,-857.91,0.00020819,2]
[349711371,1737389444664,-1039.94,0.00020819,2]
[349711374,1737389444676,-886.58,0.00020819,2]
[349711376,1737389444685,-1019.8,0.00020819,2]
[349711378,1737389444696,-500.0,0.00020819,2]
[349711380,1737389444705,-1178.2,0.00020819,2]
[349711382,1737389444714,-500.0,0.00020819,2]
[349711384,1737389444723,-500.0,0.00020819,2]
[349711385,1737389444733,-686.0,0.00020819,2]
[349711388,1737389444743,-716.26,0.00020819,2]
[349711389,1737389444752,-500.0,0.00020819,2]
[349711392,1737389444762,-1409.72,0.00020819,2]
[349711393,1737389444772,-500.0,0.00020819,2]
[349711396,1737389444782,-500.0,0.00020819,2]
[349711398,1737389444791,-539.6,0.00020819,2]
[349711399,1737389444801,-3327.54,0.00020819,2]
[349711401,1737389444811,-683.22,0.00020819,2]
[349711404,1737389444821,-500.0,0.00020819,2]
[349711405,1737389444831,-825.28,0.00020819,2]
[349711408,1737389444840,-500.0,0.00020819,2]
[349711410,1737389444850,-944.94,0.00020819,2]
[349711412,1737389444859,-1844.45,0.00020819,2]
[349711413,1737389444868,-420.0,0.00020847,2]
[349711415,1737389444877,-566.18,0.00020861,2]
[349711417,1737389444886,-975.28116572,0.00020866,2]
[349711419,1737389444896,-159.412,0.000209,2]
[349711421,1737389444905,-900.0,0.000209,7]
[349711423,1737389444914,-975.28116572,0.00020934,2]
[349711425,1737389444923,-9999.99,0.00020951,2]
[349711427,1737389444933,-393.27,0.00020951,2]
[349711429,1737389444942,-1629.21,0.00020951,2]
[349711431,1737389444951,-1380.97,0.00020951,2]
[349711433,1737389444959,-499.99,0.00020951,2]
[349711435,1737389444968,-9999.99,0.00020951,2]
[349711437,1737389444978,-1430.55,0.00020951,2]
[349711439,1737389444991,-150.99,0.00020951,2]
[349711441,1737389445000,-1313.58,0.00020951,2]
[349711443,1737389445010,-999.99,0.00020951,2]
[349711445,1737389445021,-377.71,0.00020951,2]
[349711447,1737389445031,-1876.35,0.00020951,2]
[349711449,1737389445041,-1514.51,0.00020951,2]
[349711451,1737389445051,-299.99,0.00020951,7]
[349711453,1737389445060,-150.99,0.00020951,2]
[349711455,1737389445070,-3202.31,0.00020951,2]
[349711457,1737389445079,-2996.08,0.00020951,2]
[349711459,1737389445088,-2982.66108838,0.00020966,2]
[349711461,1737389445098,-500.0,0.00020992,2]
[349711463,1737389445107,-152.43369834,0.00020992,2]
[349711465,1737389445117,-500.0,0.00020992,2]
[349711467,1737389445127,-500.0,0.00020992,2]
[349711469,1737389445136,-500.0,0.00020992,2]
[349711471,1737389445146,-500.0,0.00020992,2]
[349711473,1737389445156,-500.0,0.00020992,2]
[349711476,1737389445165,-500.0,0.00020992,2]
[349711478,1737389445175,-500.0,0.00020992,2]
[349711479,1737389445184,-500.0,0.00020992,2]
[349711481,1737389445193,-537.3,0.00020992,2]
[349711483,1737389445202,-500.0,0.00020992,2]
[349711485,1737389445212,-500.0,0.00020992,2]
[349711487,1737389445221,-500.0,0.00020992,2]
[349711489,1737389445231,-500.0,0.00020992,2]
[349711491,1737389445240,-500.0,0.00020992,2]
[349711493,1737389445249,-526.52285198,0.00020992,2]
[349711494,1737389445258,-500.0,0.00020992,2]
[349711496,1737389445267,-500.0,0.00020992,2]
[349711498,1737389445277,-500.0,0.00020992,2]
[349711500,1737389445286,-622.67,0.00020992,2]
[349711502,1737389445295,-547.72,0.00020993,2]
[349711504,1737389445304,-156.35,0.00020993,2]
[349711506,1737389445313,-500.0,0.00020993,2]
[349711508,1737389445323,-500.0,0.00020993,2]
[349711510,1737389445332,-500.0,0.00020993,2]
[349711512,1737389445341,-500.0,0.00020993,2]
[349711514,1737389445351,-500.0,0.00020993,2]
[349711516,1737389445359,-303.73,0.00020993,2]
[349711518,1737389445369,-500.0,0.00020993,2]
[349711519,1737389445378,-500.0,0.00020993,2]
[349711521,1737389445387,-500.0,0.00020993,2]
[349711523,1737389445397,-500.0,0.00020993,2]
[349711525,1737389445407,-500.0,0.00020993,2]
[349711528,1737389445416,-500.0,0.00020993,2]
[349711530,1737389445425,-500.0,0.00020993,2]
[349711532,1737389445435,-505.18,0.00020993,2]
[349711534,1737389445443,-500.0,0.00020993,2]
[349711536,1737389445453,-500.0,0.00020993,2]
[349711538,1737389445463,-1532.67,0.00020993,2]
[349711541,1737389445472,-500.0,0.00020993,2]
[349711544,1737389445482,-569.94,0.00020993,2]
[349711546,1737389445491,-500.0,0.00020993,2]
[349711548,1737389445500,-512.33,0.00020993,2]
[349711550,1737389445510,-621.4,0.00020993,2]
[349711552,1737389445519,-500.0,0.00020993,2]
[349711554,1737389445528,-500.0,0.00020993,2]
[349711556,1737389445538,-500.0,0.00020993,2]
[349711558,1737389445547,-500.0,0.00020993,2]
[349711560,1737389445557,-500.0,0.00020993,2]
[349711562,1737389445566,-500.0,0.00020993,2]
[349711564,1737389445576,-500.0,0.00020993,2]
[349711566,1737389445585,-500.0,0.00020993,2]
[349711568,1737389445594,-563.92,0.00020993,2]
[349711569,1737389445603,-500.0,0.00020993,2]
[349711571,1737389445612,-500.0,0.00020993,2]
[349711573,1737389445622,-450.74021859,0.00020993,2]
[349711575,1737389445631,-213.14,0.00020993,2]
[349711577,1737389445640,-500.0,0.00020993,2]
[349711579,1737389445649,-500.0,0.00020993,2]
[349711581,1737389445658,-500.0,0.00020993,2]
[349711583,1737389445667,-916.04,0.00020993,2]
[349711585,1737389445676,-500.0,0.00020993,2]
[349711587,1737389445685,-500.0,0.00020993,2]
[349711589,1737389445694,-500.0,0.00020993,2]
[349711591,1737389445703,-500.0,0.00020993,2]
[349711593,1737389445712,-500.0,0.00020993,2]
[349711595,1737389445721,-500.0,0.00020993,2]
[349711597,1737389445730,-500.0,0.00020993,2]
[349711599,1737389445740,-500.0,0.00020993,2]
[349711600,1737389445749,-500.0,0.00020993,2]
[349711601,1737389445758,-500.0,0.00020993,2]
[349711602,1737389445766,-500.0,0.00020993,2]
[349711603,1737389445775,-500.0,0.00020993,2]
[349711604,1737389445784,-500.0,0.00020993,2]
[349711605,1737389445793,-500.0,0.00020993,2]
[349711606,1737389445801,-500.0,0.00020993,2]
[349711607,1737389445811,-500.0,0.00020993,2]
[349711608,1737389445819,-974.36,0.00020993,2]
[349711609,1737389445828,-500.0,0.00020993,2]
[349711610,1737389445836,-500.0,0.00020993,2]
[349711611,1737389445845,-1870.7,0.00020993,2]
[349711612,1737389445854,-500.0,0.00020993,2]
[349711613,1737389445863,-500.0,0.00020993,2]
[349711615,1737389445871,-500.0,0.00020993,2]
[349711617,1737389445880,-499.58333674,0.00020993,2]
[349711619,1737389445890,-500.0,0.00020993,2]
[349711621,1737389445898,-500.0,0.00020993,2]
[349711623,1737389445908,-1100.5,0.00020993,2]
[349711625,1737389445917,-500.0,0.00020993,2]
[349711627,1737389445928,-535.43,0.00020993,2]
[349711629,1737389445937,-500.0,0.00020993,2]
[349711631,1737389445947,-500.0,0.00020993,2]
[349711633,1737389445957,-500.0,0.00020993,2]
[349711635,1737389445966,-500.0,0.00020993,2]
[349711637,1737389445976,-678.08,0.00020994,2]
[349711639,1737389445994,-1014.81,0.00020994,2]
[349711641,1737389446004,-976.23,0.00020994,2]
[349711643,1737389446013,-538.72,0.00020994,2]
[349711645,1737389446022,-1075.53,0.00020994,2]
[349711647,1737389446031,-1153.76,0.00020994,2]
[349711649,1737389446041,-500.0,0.00020995,2]
[349711651,1737389446050,-184.16,0.00020995,2]
[349711653,1737389446059,-170.09,0.00020995,2]
[349711655,1737389446068,-500.0,0.00020995,2]
[349711657,1737389446078,-406.29085803,0.00020995,2]
[349711659,1737389446087,-500.0,0.00020995,2]
[349711661,1737389446096,-545.89,0.00020995,2]
[349711663,1737389446105,-500.0,0.00020995,2]
[349711665,1737389446114,-500.0,0.00020995,2]
[349711667,1737389446123,-532.49126765,0.00020995,2]
[349711669,1737389446132,-500.0,0.00020995,2]
[349711671,1737389446141,-500.0,0.00020995,2]
[349711673,1737389446150,-500.0,0.00020995,2]
[349711675,1737389446159,-500.0,0.00020995,2]
[349711677,1737389446169,-500.0,0.00020995,2]
[349711679,1737389446178,-171.43580923,0.00020995,2]
[349711681,1737389446187,-505.83,0.00020995,2]
[349711683,1737389446196,-500.0,0.00020995,2]
[349711685,1737389446205,-25822.2834407,0.00021,7]
[349711687,1737389446214,-2000.0,0.00021,2]
[349711689,1737389446223,-700.0,0.00021,2]
[349711691,1737389446232,-21398.83804258,0.00021,2]
[349711693,1737389446241,-150.0,0.00021,2]
[349711695,1737389446250,-975.28116572,0.00021003,2]
[349711696,1737389446259,-1474.35498025,0.0002101,2]
[349711698,1737389446268,-2000.0,0.0002101,2]
[349711700,1737389446278,-3948.388498,0.0002102,2]
[349711702,1737389446287,-365.34375449,0.00021021,2]
[349711704,1737389446297,-975.28116572,0.00021072,2]
[349711707,1737389446306,-500.0,0.00021085,2]
[349711710,1737389446316,-500.0,0.00021085,2]
[349711713,1737389446325,-579.67,0.00021085,2]
[349711716,1737389446334,-531.01,0.00021085,2]
[349711719,1737389446343,-500.0,0.00021085,2]
[349711722,1737389446353,-712.92,0.00021085,2]
[349711724,1737389446363,-500.0,0.00021085,2]
[349711726,1737389446372,-500.0,0.00021085,2]
[349711728,1737389446382,-500.0,0.00021085,2]
[349711730,1737389446392,-500.0,0.00021085,2]
[349711732,1737389446402,-500.0,0.00021085,2]
[349711734,1737389446412,-500.0,0.00021085,2]
[349711736,1737389446421,-876.98,0.00021085,2]
[349711738,1737389446430,-1382.83,0.00021085,2]
[349711740,1737389446440,-500.0,0.00021085,2]
[349711742,1737389446451,-753.98,0.00021085,2]
[349711744,1737389446461,-500.0,0.00021085,2]
[349711746,1737389446471,-500.0,0.00021085,2]
[349711748,1737389446481,-608.92350553,0.00021085,2]
[349711750,1737389446491,-741.58,0.00021085,2]
[349711752,1737389446500,-500.0,0.00021085,2]
[349711754,1737389446509,-371.05,0.00021085,2]
[349711756,1737389446519,-592.62,0.00021085,2]
[349711758,1737389446528,-500.0,0.00021085,2]
[349711760,1737389446537,-500.0,0.00021093,7]
[349711762,1737389446546,-355.32080685,0.00021093,2]
[349711764,1737389446556,-500.0,0.00021093,2]
[349711766,1737389446565,-500.0,0.00021093,2]
[349711768,1737389446575,-522.47,0.00021093,2]
[349711770,1737389446583,-858.76,0.00021093,2]
[349711772,1737389446593,-374.721516,0.00021093,2]
[349711774,1737389446602,-548.88,0.00021093,2]
[349711776,1737389446611,-500.0,0.00021093,2]
[349711778,1737389446620,-309.836744,0.00021093,2]
[349711780,1737389446631,-500.0,0.00021093,2]
[349711782,1737389446640,-500.0,0.00021093,2]
[349711784,1737389446650,-500.0,0.00021093,2]
[349711786,1737389446663,-857.91,0.00021093,2]
[349711789,1737389446674,-1039.94,0.00021093,2]
[349711790,1737389446683,-886.58,0.00021093,2]
[349711793,1737389446693,-1019.8,0.00021093,2]
[349711795,1737389446702,-500.0,0.00021093,2]
[349711797,1737389446712,-1178.2,0.00021093,2]
[349711799,1737389446722,-511.79,0.00021093,2]
[349711800,1737389446731,-686.0,0.00021093,2]
[349711802,1737389446741,-716.26,0.00021093,2]
[349711804,1737389446750,-500.0,0.00021093,2]
[349711806,1737389446760,-1409.72,0.00021093,2]
[349711808,1737389446769,-161.831666,0.00021093,2]
[349711810,1737389446779,-500.0,0.00021093,2]
[349711812,1737389446788,-500.0,0.00021093,2]
[349711814,1737389446797,-539.6,0.00021093,2]
[349711816,1737389446806,-3327.54,0.00021093,2]
[349711818,1737389446816,-683.22,0.00021093,2]
[349711820,1737389446826,-500.0,0.00021093,2]
[349711822,1737389446836,-825.28,0.00021093,2]
[349711824,1737389446845,-944.94,0.00021093,2]
[349711826,1737389446855,-1844.45,0.00021093,2]
[349711828,1737389446863,-1400.0,0.000211,7]
[349711830,1737389446873,-1222.08,0.00021125,2]
[349711832,1737389446882,-975.28116572,0.00021141,2]
[349711834,1737389446892,-160.45,0.00021187,2]
[349711836,1737389446901,-2982.66108838,0.000212,2]
[349711838,1737389446910,-1800.0,0.000212,7]
[349711840,1737389446921,-975.28116572,0.0002121,2]
[349711842,1737389446931,-150.0,0.00021228,2]
[349711844,1737389446940,-1175.0,0.00021228,2]
[349711846,1737389446951,-3901.0,0.00021228,2]
[349711848,1737389446960,-1474.35498025,0.00021232,2]